bitfinex-derivatives/quotes_ETHF0:USTF0_20250817
["timestamp","ask_amount","ask_price","bid_price","bid_amount"]
[1755441306153,0.7875,4544.5,4544.4,1.4113]
[1755441307552,1.0402,4544.5,4544.4,1.4113]
[1755441307856,1.2925,4544.5,4544.4,1.4113]
[1755441308453,1.4636,4544.5,4544.4,1.4113]
[1755441308656,6.43066318,4544.5,4544.4,1.4113]
[1755441308859,6.43066318,4544.5,4544.4,0.5675]
[1755441309054,0.6015,4543.6,4543.5,0.8052]
[1755441309360,1.4636,4543.6,4543.5,1.4113]
[1755441312458,1.4636,4543.5,4543.4,0.8114]
[1755441312657,1.4636,4543.5,4543.4,1.1736]
[1755441312962,0.6015,4543.5,4543.4,0.164]
[1755441313162,0.6015,4543.5,4543.4,0.6437]
[1755441313365,0.6015,4543.5,4543.4,1.1736]
[1755441313561,1.2113,4543.5,4543.4,1.1736]
[1755441313764,1.4636,4543.5,4543.4,1.1736]
[1755441314265,1.4636,4543.5,4543.4,1.4113]
[1755441318669,1.4636,4543.5,4543.4,0.8114]
[1755441318872,0.5701,4543.3,4543.2,0.5487]
[1755441319060,1.4536,4543.3,4543.2,0.7963]
[1755441319259,1.4536,4543.3,4543.2,1.1507]
[1755441319971,1.4536,4543.3,4543.2,1.3899]
[1755441321975,3.2078,4543.4,4543.3,1.3899]
[1755441323065,3.5925,4544.2,4543.3,0.5741]
[1755441323266,4.2558,4544.2,4544.1,1.3899]
[1755441323469,4.6614,4544.2,4544.1,1.3899]
[1755441323670,3.2078,4544.2,4544.1,1.3899]
[1755441324676,4.2558,4544.2,4544.1,1.3899]
[1755441324970,4.4965,4544.2,4544.1,1.3899]
[1755441326275,4.6614,4544.2,4544.1,1.3899]
[1755441326873,3.2078,4544.2,4544.1,1.3899]
[1755441327073,4.6614,4544.2,4544.1,1.3899]
[1755441328471,0.8835,4544.1,4543.3,0.8378]
[1755441328771,0.7899,4543.5,4543.4,1.3899]
[1755441331174,1.048,4543.5,4543.4,1.3899]
[1755441331372,1.4536,4543.5,4543.4,1.3899]
[1755441331870,0.7899,4543.5,4543.4,1.3899]
[1755441332071,0.8835,4543.8,4543.7,0.1564]
[1755441332274,1.4536,4543.8,4543.7,1.3899]
[1755441333873,2.02258289,4543.8,4543.7,1.3899]
[1755441334970,1.35888289,4543.8,4543.7,1.3899]
[1755441335473,1.61698289,4543.8,4543.7,1.3899]
[1755441336077,1.85768289,4543.8,4543.7,1.3899]
[1755441336273,0.56898289,4543.8,4543.7,1.3899]
[1755441336475,3.2078,4544.2,4544.1,1.3899]
[1755441336777,5.23033306,4544.2,4544.1,1.3899]
[1755441338177,0.4052,4543.4,4543.3,1.3899]
[1755441338367,1.4536,4543.4,4543.3,1.3899]
[1755441338575,1.4536,4543.3,4543.2,1.1507]
[1755441339379,1.4536,4543.3,4543.2,1.3899]
[1755441339876,1.4536,4543.3,4543.2,0.5487]
[1755441340773,1.4536,4543.3,4543.2,1.1507]
[1755441343783,1.4536,4543.3,4543.2,1.3899]
[1755441343983,0.4052,4543.3,4543.2,1.3899]
[1755441344282,0.4052,4543.4,4543.3,1.1507]
[1755441344483,1.4536,4543.4,4543.3,1.3899]
[1755441345986,0.4052,4543.4,4543.3,1.3899]
[1755441346484,3.5925,4543.7,4543.4,0.5902]
[1755441346674,0.5701,4544.0,4543.9,0.5521]
[1755441346984,1.13874468,4544.0,4543.7,0.602]
[1755441347178,1.13874468,4543.9,4543.8,0.2358]
[1755441347378,2.02224468,4543.9,4543.7,0.2476]
[1755441347579,1.99854468,4543.8,4543.1,0.09905022]
[1755441347780,4.38084468,4543.7,4543.2,0.2392]
[1755441347980,4.6377,4543.7,4543.6,1.4395]
[1755441348282,5.20633575,4543.7,4543.6,1.4395]
[1755441351292,5.20633575,4543.7,4543.6,1.0259]
[1755441351483,5.20633575,4543.7,4543.6,1.2832]
[1755441351786,5.20633575,4543.7,4543.6,1.4395]
[1755441354489,5.20633575,4543.7,4543.6,0.315]
[1755441354686,5.20633575,4543.7,4543.6,0.5723]
[1755441354889,5.20633575,4543.7,4543.6,0.8115]
[1755441355284,5.20633575,4543.7,4543.6,1.1961]
[1755441355486,5.20633575,4543.7,4543.6,1.4395]
[1755441362793,3.4595,4544.6,4543.6,1.4615]
[1755441362994,0.5688103,4544.5,4544.4,1.1961]
[1755441363289,1.3219103,4544.5,4544.4,1.4395]
[1755441363699,1.8264103,4544.5,4544.4,1.4395]
[1755441363885,1.9987103,4544.5,4544.4,1.4395]
[1755441364792,0.5688103,4544.5,4544.4,1.4395]
[1755441365095,1.9987103,4544.5,4544.4,1.1961]
[1755441366096,1.4299,4544.5,4544.4,1.1961]
[1755441366490,1.4299,4544.5,4544.4,1.4395]
[1755441366897,1.4299,4544.5,4544.4,0.8115]
[1755441367992,1.4299,4544.5,4544.4,1.4395]
[1755441370496,0.4004,4544.5,4544.4,1.4395]
[1755441370687,3.2078,4544.6,4544.5,0.8811]
[1755441370893,3.2078,4544.6,4544.5,1.4395]
[1755441372499,4.2126,4544.6,4544.5,1.4395]
[1755441372697,3.9609,4544.6,4544.5,1.4395]
[1755441373799,4.3849,4544.6,4544.5,1.4395]
[1755441373999,4.3849,4544.6,4544.5,0.5584]
[1755441374000,4.1332,4544.6,4544.5,0.5584]
[1755441374195,4.6377,4544.6,4544.5,1.4395]
[1755441388716,3.2078,4545.3,4544.5,0.5804]
[1755441388908,3.2078,4545.3,4545.1,1.4931]
[1755441388909,0.56466215,4545.2,4545.1,1.4931]
[1755441389310,1.2851,4545.2,4545.1,1.4931]
[1755441389618,1.4431,4545.2,4545.1,1.4931]
[1755441390917,3.2078,4545.3,4545.1,1.4931]
[1755441391114,0.3806,4545.9,4545.2,1.4931]
[1755441391115,0.8714,4545.9,4545.2,1.4931]
[1755441391319,2.00780511,4545.8,4545.7,1.4931]
[1755441392017,1.13640511,4545.8,4545.4,0.3798]
[1755441392212,1.4431,4545.6,4545.5,0.9784]
[1755441392416,2.00780511,4545.6,4545.5,0.9784]
[1755441392925,2.00780511,4545.6,4545.5,1.4931]
[1755441398818,0.56470511,4545.6,4545.5,1.4931]
[1755441399023,0.3806,4545.8,4545.5,0.6021]
[1755441399224,3.2078,4546.0,4545.6,1.75926318]
[1755441399425,3.2078,4546.0,4545.0,4.30732]
[1755441399426,3.2078,4546.0,4545.9,2.36136318]
[1755441399724,4.6509,4546.0,4545.9,0.6018]
[1755441399918,4.6509,4546.0,4545.9,0.8558]
[1755441400327,4.6509,4546.0,4545.9,1.2356]
[1755441400518,4.3959,4546.0,4545.9,1.4931]
[1755441400822,4.6509,4546.0,4545.9,1.4931]
[1755441401024,0.4908,4546.7,4546.0,0.891]
[1755441401221,0.4908,4546.7,4545.7,3.2297]
[1755441401222,0.2358,4546.9,4546.6,0.254]
[1755441401527,1.4431,4546.9,4546.8,1.4931]
[1755441401726,2.00748664,4546.9,4546.8,1.4931]
[1755441402122,1.4431,4546.9,4546.8,1.4931]
[1755441405325,0.4137,4547.0,4546.9,1.4931]
[1755441405630,1.2851,4547.0,4546.9,1.4931]
[1755441405828,1.4431,4547.0,4546.9,1.4931]
[1755441407228,1.1881,4547.0,4546.9,1.4931]
[1755441407423,0.9523,4547.0,4546.9,1.4931]
[1755441408428,1.4517,4547.0,4546.9,1.4931]
[1755441409029,0.407,4546.5,4546.4,1.4463]
[1755441409231,1.451,4546.5,4546.4,1.4463]
[1755441412227,0.407,4546.9,4546.8,0.5807]
[1755441412430,0.7954,4546.9,4546.8,1.4463]
[1755441412626,1.0501,4546.9,4546.8,1.4463]
[1755441412822,0.407,4546.9,4546.8,1.4463]
[1755441413028,0.7954,4546.9,4546.8,1.4463]
[1755441413228,1.451,4546.9,4546.8,1.4463]
[1755441416935,0.7954,4546.9,4546.8,1.4463]
[1755441417733,1.451,4546.9,4546.8,1.4463]
[1755441418139,0.5632,4546.4,4545.7,3.2078]
[1755441418338,1.451,4545.9,4545.8,1.4463]
[1755441418635,1.451,4545.9,4545.7,3.2078]
[1755441419036,1.451,4545.8,4545.7,3.2078]
[1755441419238,0.162,4545.2,4545.1,1.4463]
[1755441419433,1.451,4545.2,4545.1,1.4463]
[1755441421431,1.451,4545.2,4544.6,0.43985]
[1755441421432,0.5632,4545.2,4544.7,0.2427]
[1755441421642,1.451,4544.8,4544.7,0.4122]
[1755441421830,1.451,4544.8,4544.7,0.8048]
[1755441422132,1.451,4544.8,4544.7,0.5698]
[1755441422336,1.451,4544.8,4544.7,1.1927]
[1755441422735,1.451,4544.8,4544.7,1.4463]
[1755441425640,1.451,4544.8,4544.7,1.0584]
[1755441425837,1.451,4544.8,4544.7,0.8048]
[1755441427038,0.5632,4544.6,4544.5,0.8048]
[1755441427344,1.451,4544.6,4544.5,0.8048]
[1755441427537,1.451,4544.6,4544.5,0.5698]
[1755441428941,1.451,4544.6,4544.5,1.1927]
[1755441430343,1.451,4544.5,4544.4,3.2078]
[1755441430736,1.451,4544.5,4544.4,3.4505]
[1755441430936,1.451,4544.5,4544.4,3.855]
[1755441431238,1.451,4544.5,4544.4,4.0126]
[1755441431439,1.451,4544.5,4544.4,4.4005]
[1755441434442,1.451,4544.5,4544.4,4.6541]
[1755441439354,0.3865,4545.2,4544.4,4.2662]
[1755441439550,1.4789,4545.2,4545.1,1.4302]
[1755441439742,1.2254,4545.2,4545.1,1.4302]
[1755441439945,0.9744,4545.2,4545.1,1.4302]
[1755441440246,0.2597,4545.2,4545.1,1.4302]
[1755441440645,0.8149,4545.2,4545.1,1.4302]
[1755441440941,1.0659,4545.2,4545.1,1.4302]
[1755441441438,1.2254,4545.2,4545.1,1.4302]
[1755441441643,1.4789,4545.2,4545.1,1.4302]
[1755441443947,0.3865,4545.7,4545.2,0.2601]
[1755441444153,1.4789,4545.7,4545.6,1.4302]
[1755441445951,1.4789,4545.7,4545.6,0.4234]
[1755441446147,0.5879,4545.7,4545.4,0.2345]
[1755441446351,1.4789,4545.5,4545.4,0.7606]
[1755441446551,1.4789,4545.5,4545.4,1.1701]
[1755441446855,0.9744,4545.5,4545.4,1.4302]
[1755441447053,1.4789,4545.5,4545.4,1.4302]
[1755441448142,1.15181593,4545.5,4545.4,1.4302]
[1755441448347,2.04281593,4545.5,4545.4,1.4302]
[1755441448851,2.04281593,4545.5,4544.5,0.43986]
[1755441449047,2.04316464,4545.4,4545.3,0.3367]
[1755441449251,5.25096464,4545.4,4545.3,0.8313]
[1755441449553,5.25096464,4545.4,4545.3,1.4302]
[1755441450549,0.5879,4544.3,4544.2,1.0775]
[1755441450750,1.4789,4544.3,4544.2,1.0775]
[1755441451252,1.4789,4544.3,4544.2,1.4302]
[1755441457954,1.2254,4544.3,4544.2,1.4302]
[1755441458152,1.4789,4544.3,4544.2,1.4302]
[1755441462047,3.2078,4544.6,4544.2,0.5829]
[1755441462253,3.7957,4545.1,4545.0,0.5829]
[1755441462453,5.25076012,4545.1,4545.0,1.4302]
[1755441462653,5.25076012,4545.1,4545.0,0.8313]
[1755441462857,7.0100233,4545.1,4544.7,0.5872]
[1755441463156,7.0100233,4545.1,4544.9,1.4302]
[1755441463157,0.5879,4545.0,4544.9,1.4302]
[1755441463659,1.4789,4545.0,4544.9,1.4302]
[1755441466259,2.0435277,4545.0,4544.9,1.4302]
[1755441466956,1.4789,4545.0,4544.9,1.4302]
[1755441468160,0.9744,4545.0,4544.9,1.4302]
[1755441468361,1.4649,4545.0,4544.9,1.4302]
[1755441472459,3.2078,4545.1,4544.9,1.4302]
[1755441472660,3.4607,4545.9,4545.8,0.8355]
[1755441472861,3.77152498,4545.9,4545.8,1.4432]
[1755441473263,3.2078,4545.9,4545.8,1.4432]
[1755441474068,3.2078,4546.4,4545.8,1.4432]
[1755441474264,0.7644,4546.2,4546.1,0.577]
[1755441474461,0.7644,4546.2,4546.1,1.4432]
[1755441474462,0.56347633,4546.2,4546.1,1.4432]
[1755441474961,0.352,4546.3,4546.2,0.8662]
[1755441475165,0.7644,4546.3,4546.2,1.4432]
[1755441475465,1.0066,4546.3,4546.2,1.4432]
[1755441475665,1.4255,4546.3,4546.2,1.4432]
[1755441478870,1.1772,4546.3,4546.2,1.4432]
[1755441479170,1.4255,4546.3,4546.2,1.4432]
[1755441479469,0.7644,4546.3,4546.2,1.4432]
[1755441479668,0.4124,4546.3,4546.2,1.4432]
[1755441480270,1.0066,4546.3,4546.2,1.4432]
[1755441480568,1.4255,4546.3,4546.2,1.4432]
[1755441481765,0.935,4546.3,4546.2,1.4432]
[1755441481972,0.7644,4546.3,4546.2,1.4432]
[1755441482271,1.0066,4546.3,4546.2,1.4432]
[1755441482470,1.4255,4546.3,4546.2,1.4432]
[1755441484469,3.2078,4546.4,4546.2,1.4432]
[1755441484972,3.2078,4546.4,4546.3,1.4432]
[1755441485165,4.2144,4546.9,4546.8,1.4432]
[1755441485371,3.9722,4546.9,4546.8,1.4432]
[1755441485570,4.6333,4546.9,4546.8,1.4432]
[1755441494083,1.4255,4546.9,4546.8,1.4432]
[1755441494679,1.2549,4547.2,4547.1,0.577]
[1755441494976,3.2078,4547.4,4547.1,0.577]
[1755441495177,3.2078,4547.4,4547.3,2.59476318]
[1755441495379,3.2078,4547.4,4547.3,3.20246318]
[1755441497183,3.5598,4547.4,4547.3,3.20246318]
[1755441497684,3.2078,4547.4,4547.3,3.20246318]
[1755441498177,3.9875,4547.4,4547.3,3.20246318]
[1755441498383,3.6045,4547.4,4547.3,3.19916318]
[1755441498584,3.2078,4547.4,4547.3,3.19916318]
[1755441499377,4.2451,4547.4,4547.3,3.19916318]
[1755441499784,4.1489,4547.4,4547.3,3.19916318]
[1755441499974,4.6522,4547.4,4547.3,3.19916318]
[1755441500174,3.9875,4547.4,4547.3,3.19916318]
[1755441500381,3.4441,4547.4,4547.3,3.19916318]
[1755441500880,3.4441,4547.4,4547.3,1.4399]
[1755441501185,4.6522,4547.4,4547.3,1.4399]
[1755441501776,0.5581,4547.2,4547.1,0.4995]
[1755441501980,1.4444,4547.2,4546.8,0.6067]
[1755441502282,3.5908,4547.4,4547.0,0.3193]
[1755441502586,1.4444,4547.2,4547.1,0.8188]
[1755441502885,1.4444,4547.2,4547.1,0.5755]
[1755441503788,1.4444,4547.2,4547.1,1.4164]
[1755441504586,1.1987,4547.2,4547.1,1.4164]
[1755441504780,0.3967,4547.2,4547.1,1.4164]
[1755441505881,3.2078,4547.4,4547.1,0.9169]
[1755441506186,3.2078,4547.4,4547.3,1.4164]
[1755441506379,3.77099809,4547.4,4547.3,1.4164]
[1755441506788,4.15399809,4547.4,4547.3,1.4164]
[1755441507086,0.383,4548.0,4547.3,2.31276318]
[1755441507282,0.383,4548.0,4547.2,0.43959]
[1755441507283,1.0373,4548.0,4547.9,1.4164]
[1755441507482,0.56315006,4548.0,4547.9,1.4164]
[1755441507677,3.2078,4548.1,4547.9,1.4164]
[1755441507877,3.2078,4548.1,4547.8,1.75926318]
[1755441507878,3.2078,4548.1,4548.0,1.4164]
[1755441508189,3.77090934,4548.1,4548.0,1.4164]
[1755441509286,4.31430934,4548.1,4548.0,1.4164]
[1755441509588,4.55060934,4548.1,4548.0,1.4164]
[1755441509776,4.16760934,4548.1,4548.0,1.4164]
[1755441509981,3.6045,4548.1,4548.0,1.4164]
[1755441510485,3.9875,4548.1,4548.0,1.4164]
[1755441510989,4.3946,4548.1,4548.0,1.4164]
[1755441511281,1.4444,4547.5,4547.4,4.1338]
[1755441511682,1.4444,4547.5,4547.4,6.12726318]
[1755441511882,1.4444,4547.5,4547.4,6.38346318]
[1755441512888,1.1987,4547.5,4547.4,6.38346318]
[1755441513290,1.4444,4547.5,4547.4,6.38346318]
[1755441514788,1.4444,4547.5,4547.4,4.6242]
[1755441515293,1.4444,4547.5,4547.4,1.4164]
[1755441516088,0.1604,4547.2,4547.1,0.2433]
[1755441516296,1.4444,4547.2,4547.1,1.053]
[1755441516790,1.4444,4547.2,4546.9,0.3634]
[1755441516791,0.5581,4546.9,4546.8,3.5271]
[1755441516993,0.5581,4546.9,4546.8,4.0266]
[1755441516994,1.4444,4546.9,4546.8,4.0266]
[1755441517188,1.4444,4546.9,4546.8,6.38346318]
[1755441517394,1.1987,4546.9,4546.8,6.38346318]
[1755441517893,0.7797,4546.9,4546.8,6.38346318]
[1755441518992,0.3967,4546.9,4546.8,6.38346318]
[1755441520297,4.1489,4547.6,4547.5,0.5535]
[1755441520492,5.2160141,4547.6,4547.5,1.4164]
[1755441521596,5.2160141,4547.6,4547.5,0.8188]
[1755441521797,5.2160141,4547.6,4547.5,0.3193]
[1755441521995,5.2160141,4547.6,4547.5,0.8188]
[1755441522193,5.2160141,4547.6,4547.5,1.4164]
[1755441522799,4.6522,4547.6,4547.5,1.4164]
[1755441523194,3.2078,4547.6,4547.5,1.4164]
[1755441523401,4.5515243,4547.6,4547.5,1.4164]
[1755441523798,4.8091243,4547.6,4547.5,1.4164]
[1755441524000,5.2162243,4547.6,4547.5,1.4164]
[1755441524304,3.9875,4547.6,4547.5,1.4164]
[1755441527603,3.2078,4547.6,4547.5,1.4164]
[1755441528301,3.9733,4547.6,4547.5,1.4164]
[1755441528497,4.2299,4547.6,4547.5,1.4164]
[1755441528704,4.4883,4547.6,4547.5,1.4164]
[1755441528897,3.2078,4548.4,4547.6,0.43956]
[1755441529104,3.2078,4548.4,4547.3,3.2078]
[1755441529105,1.1350304,4548.3,4548.2,2.83736318]
[1755441529299,0.571,4548.3,4548.2,3.20406318]
[1755441529802,1.4512,4548.3,4548.2,3.20406318]
[1755441530207,0.7655,4548.3,4548.2,1.4448]
[1755441530401,1.2805,4548.3,4548.2,3.20406318]
[1755441530603,1.4512,4548.3,4548.2,3.20406318]
[1755441531604,0.4003,4548.3,4548.2,3.20406318]
[1755441531806,0.7655,4548.3,4548.2,3.20406318]
[1755441532105,1.4512,4548.3,4548.2,3.20406318]
[1755441534100,1.4512,4548.3,4548.2,0.5615]
[1755441534800,1.4512,4548.3,4548.2,1.185]
[1755441537201,0.571,4548.1,4548.0,0.8183]
[1755441537402,1.4512,4548.1,4548.0,1.4448]
[1755441539298,0.8802,4548.0,4547.7,0.2364]
[1755441539501,0.571,4547.5,4547.4,0.5849]
[1755441539908,0.571,4547.5,4547.4,1.0781]
[1755441540110,1.4512,4547.5,4547.4,1.4448]
[1755441540306,1.4512,4547.5,4547.4,0.8213]
[1755441540703,1.4512,4547.5,4547.4,1.0781]
[1755441540898,1.4512,4547.5,4547.4,1.4448]
[1755441541099,1.4512,4547.5,4547.4,0.4221]
[1755441541309,1.4512,4547.4,4547.0,1.75926318]
[1755441541509,0.571,4547.2,4547.1,0.2364]
[1755441541710,1.4512,4547.2,4547.1,0.2364]
[1755441542311,0.571,4547.2,4547.0,1.75926318]
[1755441542500,1.4512,4547.1,4547.0,1.75926318]
[1755441542808,3.2297,4547.7,4546.8,0.3667]
[1755441542809,1.4512,4546.9,4546.8,1.185]
[1755441543801,0.4003,4547.5,4547.4,0.2598]
[1755441544009,0.7655,4547.5,4547.4,2.60096318]
[1755441544408,0.3652,4548.0,4547.5,0.6031]
[1755441544615,1.1928,4548.0,4547.9,3.20406318]
[1755441544909,1.4512,4548.5,4548.4,0.5849]
[1755441545105,1.13451013,4548.5,4548.4,1.4448]
[1755441545314,0.2404,4548.5,4548.4,1.4448]
[1755441545498,3.2078,4548.8,4548.7,0.3251]
[1755441545702,3.2078,4548.8,4548.7,3.20406318]
[1755441545903,3.2078,4548.8,4548.2,0.4395]
[1755441545904,0.571,4548.6,4548.5,0.8183]
[1755441546104,3.2078,4548.8,4548.7,0.5849]
[1755441546312,3.3677,4548.8,4548.7,1.4448]
[1755441546504,3.9733,4548.8,4548.7,1.4448]
[1755441546709,4.659,4548.8,4548.7,1.4448]
[1755441549012,4.659,4548.8,4548.7,0.8183]
[1755441549815,3.7788,4548.8,4548.4,1.75926318]
[1755441550112,1.4512,4548.6,4548.5,0.2364]
[1755441550615,1.4512,4548.6,4548.5,0.4017]
[1755441552103,0.4003,4547.9,4547.8,3.20406318]
[1755441552310,1.4512,4547.9,4547.8,3.20406318]
[1755441552510,1.1928,4547.9,4547.8,3.20406318]
[1755441552812,0.7655,4547.9,4547.8,3.20406318]
[1755441553614,1.4512,4547.9,4547.8,3.20406318]
[1755441553908,0.571,4547.6,4547.5,2.17886318]
[1755441554114,1.4512,4547.6,4547.5,2.60096318]
[1755441554508,1.4512,4547.6,4547.5,3.20406318]
[1755441556612,0.6677,4547.4,4547.3,0.2568]
[1755441556915,1.4512,4547.4,4547.3,0.4932]
[1755441557117,0.571,4547.4,4547.2,0.2364]
[1755441557318,1.4512,4547.3,4547.2,0.4932]
[1755441557519,1.4512,4547.3,4547.2,0.8183]
[1755441557817,1.4512,4547.3,4547.2,0.5615]
[1755441558018,0.571,4547.3,4546.9,0.2356]
[1755441558215,1.0454,4546.7,4546.6,1.1689]
[1755441558416,1.4129,4546.7,4546.6,0.8149]
[1755441558914,1.4129,4546.7,4546.6,1.1689]
[1755441559314,1.4129,4546.7,4546.6,1.0723]
[1755441559621,1.4129,4546.3,4546.2,0.1723]
[1755441559915,1.4129,4546.3,4546.2,0.3425]
[1755441560116,1.4129,4546.3,4546.2,0.8149]
[1755441560720,0.567,4546.1,4546.0,4.0227]
[1755441561020,1.4129,4546.1,4546.0,4.3767]
[1755441561221,1.4129,4546.1,4546.0,4.6341]
[1755441562424,1.4129,4545.5,4545.4,4.3767]
[1755441562918,1.4129,4545.5,4545.4,4.6341]
[1755441563920,3.2078,4546.1,4545.5,0.2368]
[1755441564217,4.6207,4546.1,4546.0,1.4263]
[1755441564426,4.6207,4546.1,4546.0,0.5793]
[1755441564616,0.567,4545.7,4545.6,2.11326318]
[1755441564814,1.4129,4545.7,4545.6,2.71316318]
[1755441565126,1.4129,4545.7,4545.6,3.18556318]
[1755441565520,0.9345,4545.7,4545.6,3.18556318]
[1755441565825,1.4129,4546.0,4545.9,0.5999]
[1755441566124,1.4129,4546.0,4545.9,1.4263]
[1755441567136,0.9345,4546.0,4545.9,1.4263]
[1755441567725,1.1759,4546.0,4545.9,1.4263]
[1755441568025,1.4129,4546.0,4545.9,1.4263]
[1755441568226,1.1759,4546.0,4545.9,3.18556318]
[1755441568426,3.2078,4546.6,4545.9,3.18556318]
[1755441568629,0.3996,4546.1,4546.0,1.4263]
[1755441568823,0.7671,4546.1,4546.0,1.4263]
[1755441569119,1.4129,4546.1,4546.0,1.0723]
[1755441569325,1.4129,4546.1,4546.0,1.4263]
[1755441570023,3.2078,4546.6,4546.1,0.2368]
[1755441570231,4.2532,4546.6,4546.5,1.4263]
[1755441570921,4.6207,4546.6,4546.5,1.4263]
[1755441571321,4.6207,4546.6,4546.2,0.4724]
[1755441571523,0.567,4546.3,4546.2,0.6426]
[1755441571724,1.4129,4546.3,4546.2,1.4263]
[1755441573133,0.9345,4546.3,4545.9,20.017]
[1755441573331,0.567,4546.3,4546.2,1.4263]
[1755441573931,1.4129,4546.3,4546.2,1.4263]
[1755441575433,0.7729,4546.5,4546.4,0.5999]
[1755441575736,3.2078,4546.6,4546.5,1.4263]
[1755441576929,0.237,4547.4,4546.6,0.43966]
[1755441577135,1.4129,4547.4,4547.3,1.4263]
[1755441577337,0.3675,4547.7,4547.4,0.8264]
[1755441577540,1.4129,4547.7,4547.6,0.5999]
[1755441577737,1.4129,4547.7,4547.6,1.4263]
[1755441577938,0.7671,4547.7,4547.6,1.4263]
[1755441578846,1.4129,4547.7,4547.6,1.4263]
[1755441579944,3.6862,4548.1,4547.6,1.86586]
[1755441580143,3.6862,4548.1,4547.1,1.09902]
[1755441580144,3.2078,4548.1,4548.0,1.4263]
[1755441580445,3.6074,4548.1,4548.0,1.4263]
[1755441580645,4.3837,4548.1,4548.0,1.4263]
[1755441581145,3.2078,4548.1,4548.0,1.4263]
[1755441582750,4.6207,4548.8,4548.7,1.4263]
[1755441583948,4.1423,4548.8,4548.7,1.4263]
[1755441584138,4.6207,4548.8,4548.7,1.4263]
[1755441585141,0.6089,4549.3,4548.8,0.8264]
[1755441585345,1.4129,4549.3,4549.2,1.4263]
[1755441588551,1.4129,4549.3,4549.2,1.0723]
[1755441589748,0.4038,4548.8,4548.7,2.33696318]
[1755441590055,0.7624,4548.8,4548.7,2.33696318]
[1755441590348,0.7624,4548.8,4548.7,3.19106318]
[1755441591853,0.4038,4548.8,4548.7,3.19106318]
[1755441592151,0.2521,4549.0,4548.8,0.8541]
[1755441592347,0.7624,4549.1,4549.0,1.4318]
[1755441593052,1.0145,4549.1,4549.0,1.4318]
[1755441593252,0.4038,4549.1,4549.0,3.19106318]
[1755441593550,0.7624,4549.1,4549.0,3.19106318]
[1755441594149,1.0145,4549.1,4549.0,3.19106318]
[1755441594657,1.1759,4549.1,4549.0,3.19106318]
[1755441594850,1.4131,4549.1,4549.0,3.19106318]
[1755441595348,1.4131,4549.1,4549.0,1.4318]
[1755441598353,0.4038,4549.1,4549.0,3.19106318]
[1755441598554,3.2078,4549.4,4549.0,3.19106318]
[1755441598752,3.4599,4549.4,4549.1,0.4948]
[1755441598957,4.2623,4549.4,4549.3,0.5777]
[1755441599157,4.2623,4549.4,4549.3,1.4318]
[1755441599455,4.6209,4549.4,4549.3,1.4318]
[1755441600152,3.6116,4549.4,4549.3,1.4318]
[1755441600353,3.6116,4549.4,4549.3,3.19106318]
[1755441600760,4.3837,4549.4,4549.3,3.19106318]
[1755441600959,4.6209,4549.4,4549.3,3.19106318]
[1755441601660,4.6209,4549.4,4549.3,1.4318]
[1755441606461,4.6209,4549.4,4549.3,1.0725]
[1755441606662,0.8479,4549.3,4548.7,20.003]
[1755441606863,1.4131,4548.8,4548.7,21.4348]
[1755441607961,1.1759,4548.8,4548.7,21.4348]
[1755441608262,0.9238,4548.8,4548.7,21.4348]
[1755441609164,0.8479,4549.1,4548.7,21.4348]
[1755441609361,3.9702,4549.4,4549.3,0.1628]
[1755441609566,4.53800445,4549.4,4549.3,2.33696318]
[1755441609867,4.53800445,4549.4,4549.3,3.19106318]
[1755441610460,4.79010445,4549.4,4549.3,3.19106318]
[1755441610662,4.53800445,4549.4,4549.3,3.19106318]
[1755441610857,4.79010445,4549.4,4549.3,3.19106318]
[1755441611161,5.18870445,4549.4,4549.3,3.19106318]
[1755441611766,4.66870445,4549.4,4549.3,3.19106318]
[1755441611959,5.02730445,4549.4,4549.3,3.19106318]
[1755441612166,5.18870445,4549.4,4549.3,3.19106318]
[1755441613566,5.18870445,4549.4,4549.3,1.4318]
[1755441620173,4.17940445,4549.4,4549.3,1.4318]
[1755441620471,0.3876,4549.8,4549.3,1.89309]
[1755441620775,0.5548,4550.1,4550.0,0.5606]
[1755441620976,1.55409171,4550.1,4550.0,3.18436318]
[1755441621172,2.05379171,4550.1,4550.0,3.18436318]
[1755441621872,2.05379171,4550.1,4549.8,20.0]
[1755441621873,0.1722,4549.9,4549.8,20.0]
[1755441622169,2.05379171,4549.9,4549.8,20.0]
[1755441622371,1.55409171,4549.9,4549.8,23.18436318]
[1755441622579,1.4855,4549.9,4549.8,23.18436318]
[1755441628181,0.8136,4549.9,4549.8,23.18436318]
[1755441628471,1.073,4549.9,4549.8,23.18436318]
[1755441628677,1.4855,4549.9,4549.8,23.18436318]
[1755441628974,1.4855,4549.9,4549.8,3.18436318]
[1755441629182,1.4855,4549.9,4549.8,21.1798]
[1755441629368,1.4855,4549.9,4549.8,23.18236318]
[1755441630177,1.4855,4549.9,4549.8,1.4251]
[1755441630379,1.4855,4549.9,4549.8,21.4221]
[1755441630577,1.4855,4549.9,4549.8,23.18136318]
[1755441632277,1.4855,4549.9,4549.8,2.81316318]
[1755441632580,0.5982,4549.9,4549.7,19.996]
[1755441632776,0.5982,4549.7,4549.6,0.4933]
[1755441632983,0.5982,4549.7,4549.5,0.3712]
[1755441632984,0.5982,4549.5,4549.4,3.5251]
[1755441633183,1.4855,4549.5,4549.4,24.3856]
[1755441633475,1.4855,4549.5,4549.4,24.6289]
[1755441635884,1.4855,4549.5,4549.4,4.6329]
[1755441636186,1.2261,4549.5,4549.4,25.06729]
[1755441636381,1.4855,4549.5,4549.4,25.06729]